bitfinex/quotes_SOLUSD_20240604
["timestamp","ask_amount","ask_price","bid_price","bid_amount"]
[1717509598704,2.5647,166.31,166.24,27.76]
[1717509598911,2.5647,166.31,166.3,6.94]
[1717509599410,0.34,166.31,166.3,6.94]
[1717509599614,2.2245,166.33,166.3,6.94]
[1717509599793,2.2245,166.33,166.32,6.94]
[1717509600317,25.82452786,166.39,166.32,13.88]
[1717509600484,28.04822786,166.39,166.3,2.2248]
[1717509600709,28.04812786,166.39,166.38,6.94]
[1717509601025,57.95686475,166.44,166.38,6.94]
[1717509601209,57.95686475,166.44,166.4,6.94]
[1717509601530,2.2226,166.47,166.43,6.94]
[1717509601844,19.55152133,166.47,166.35,2.2242]
[1717509602131,81.04541551,166.51,166.43,6.94]
[1717509602315,2.2227,166.46,166.43,6.94]
[1717509602828,2.2227,166.46,166.35,2.2242]
[1717509603031,2.2227,166.46,166.43,6.94]
[1717509603232,2.2226,166.48,166.44,6.94]
[1717509603407,2.2226,166.48,166.33,156.04]
[1717509603733,13.98857054,166.53,166.46,6.94]
[1717509603919,7.04857054,166.53,166.47,6.94]
[1717509604313,2.2219,166.52,166.48,6.94]
[1717509604521,7.04857054,166.53,166.5,6.94]
[1717509604723,26.04323445,166.56,166.5,6.94]
[1717509604906,26.04323445,166.56,166.51,6.94]
[1717509605111,2.2218,166.53,166.51,6.94]
[1717509605322,2.2218,166.53,166.42,2.2232]
[1717509605524,28.26473445,166.56,166.48,6.94]
[1717509605738,26.04323445,166.56,166.55,6.94]
[1717509605934,1.1656356,166.57,166.49,20.78]
[1717509606255,1.1656356,166.57,166.49,56.82]
[1717509606429,1.1656356,166.57,166.49,20.78]
[1717509607112,1.1656356,166.57,166.51,2.222]
[1717509607325,1.1656356,166.57,166.52,20.78]
[1717509607743,1.1656356,166.57,166.52,23.0019]
[1717509607952,1.1656356,166.57,166.55,20.78]
[1717509608149,1.1656356,166.57,166.56,2.2214]
[1717509608349,6.23682462,166.66,166.56,20.78]
[1717509608530,6.23682462,166.66,166.6,20.78]
[1717509608736,32.03199461,166.72,166.6,23.0008]
[1717509608920,2.2193,166.72,166.6,23.0008]
[1717509609119,2.2194,166.71,166.6,20.78]
[1717509609431,0.8198904,166.74,166.57,120.17]
[1717509609432,3.0388904,166.74,166.57,120.17]
[1717509609746,2.2191,166.73,166.63,20.78]
[1717509610829,0.8198904,166.74,166.6,20.78]
[1717509611221,2.2195,166.71,166.6,23.0008]
[1717509611422,2.7196,166.7,166.57,2.2212]
[1717509611619,0.5,166.7,166.56,20.78]
[1717509611822,0.5,166.7,166.53,20.78]
[1717509612040,2.2207,166.61,166.53,20.78]
[1717509612234,2.221,166.59,166.5,11.093832]
[1717509612441,0.17,166.58,166.5,11.093832]
[1717509612825,0.17,166.58,166.51,20.78]
[1717509613423,4.4396,166.68,166.54,20.78]
[1717509613624,2.2204,166.64,166.54,20.78]
[1717509613924,2.3905,166.63,166.54,20.78]
[1717509614130,2.2205,166.63,166.54,20.78]
[1717509614539,0.17,166.62,166.54,20.78]
[1717509614948,0.17,166.64,166.54,20.78]
[1717509615161,2.22,166.67,166.57,20.78]
[1717509615452,2.22,166.66,166.57,20.78]
[1717509615659,2.22,166.66,166.54,23.0016]
[1717509615869,2.2202,166.65,166.54,2.2216]
[1717509616037,24.37799461,166.69,166.53,20.78]
[1717509616224,2.2207,166.61,166.53,20.78]
[1717509616428,4.4399,166.67,166.53,20.78]
[1717509616847,2.2207,166.61,166.53,20.78]
[1717509617230,0.34,166.6,166.47,258.2]
[1717509617430,0.34,166.62,166.48,20.78]
[1717509617431,4.7812,166.62,166.48,20.78]
[1717509618032,4.7812,166.62,166.45,2.2228]
[1717509618239,2.2215,166.55,166.44,45.4183]
[1717509618536,0.34,166.56,166.45,2.2228]
[1717509618749,0.34,166.56,166.44,45.4183]
[1717509618925,0.34,166.56,166.44,9.3783]
[1717509619127,2.5615,166.56,166.44,11.6013]
[1717509619330,2.2218,166.53,166.44,9.3783]
[1717509619530,0.17,166.52,166.44,9.3783]
[1717509619731,2.3918,166.53,166.44,9.3783]
[1717509619959,0.17,166.52,166.44,9.3783]
[1717509620132,2.2221,166.51,166.44,9.3783]
[1717509620330,2.2226,166.47,166.44,9.3783]
[1717509620839,0.34,166.46,166.44,9.3783]
[1717509621468,2.2224,166.49,166.44,9.3783]
[1717509621635,2.5625,166.48,166.44,9.3783]
[1717509621835,4.4428,166.57,166.44,9.3783]
[1717509622148,0.34,166.56,166.44,9.3783]
[1717509622352,2.2222,166.5,166.44,9.3783]
[1717509622552,2.5623,166.49,166.44,9.3783]
[1717509622746,0.34,166.48,166.44,9.3783]
[1717509623259,0.17,166.49,166.44,9.3783]
[1717509623556,2.3924,166.48,166.44,9.3783]
[1717509623729,0.17,166.48,166.44,9.3783]
[1717509623931,0.34,166.49,166.44,9.3783]
[1717509624738,2.2228,166.45,166.44,9.3783]
[1717509625051,0.34,166.45,166.44,9.3783]
[1717509625430,2.5628,166.45,166.44,9.3783]
[1717509626342,0.34,166.45,166.44,9.3783]
[1717509626537,2.2225,166.48,166.44,9.3783]
[1717509626757,2.3926,166.47,166.44,9.3783]
[1717509626951,0.17,166.47,166.44,9.3783]
[1717509627261,81.93624461,166.56,166.44,9.3783]
[1717509627465,2.2223,166.49,166.44,9.3783]
[1717509627955,2.2226,166.47,166.44,9.3783]
[1717509628260,4.4438,166.53,166.44,9.3783]
[1717509628562,88.60084461,166.56,166.44,9.3783]
[1717509628750,2.2224,166.49,166.44,9.3783]
[1717509628949,2.2222,166.5,166.44,9.3783]
[1717509629142,2.2223,166.49,166.44,9.3783]
[1717509629340,81.93624461,166.56,166.44,9.3783]
[1717509629564,2.2226,166.47,166.44,9.3783]
[1717509629768,0.17,166.46,166.44,9.3783]
[1717509630073,0.17,166.46,166.38,2.2237]
[1717509630250,0.34,166.47,166.39,2.2236]
[1717509630437,0.34,166.47,166.38,2.2237]
[1717509631064,0.34,166.47,166.35,36.04]
[1717509631065,32.27749461,166.55,166.37,36.04]
[1717509631366,32.27749461,166.55,166.37,40.4877]
[1717509631739,2.2218,166.54,166.39,40.4872]
[1717509631935,2.2218,166.54,166.4,124.447]
[1717509632135,49.37349461,166.58,166.45,2.2228]
[1717509632362,49.37349461,166.58,166.41,36.38]
[1717509632574,2.2218,166.53,166.43,2.2231]
[1717509633372,4.4428,166.56,166.41,2.2234]
[1717509633542,2.222,166.52,166.42,2.2232]
[1717509633741,2.2221,166.51,166.41,2.2234]
[1717509634059,2.2218,166.53,166.43,2.2231]
[1717509634391,4.4431,166.55,166.38,36.04]
[1717509634570,2.2221,166.51,166.39,0.17]
[1717509634742,0.34,166.52,166.39,0.17]
[1717509635069,0.34,166.52,166.4,36.04]
[1717509635271,0.34,166.52,166.43,2.2231]
[1717509635469,0.34,166.52,166.41,2.2232]
[1717509635671,2.5619,166.52,166.4,36.04]
[1717509635856,0.34,166.52,166.4,36.04]
[1717509636055,2.2218,166.53,166.44,2.223]
[1717509636264,0.17,166.52,166.41,0.17]
[1717509636570,2.2218,166.53,166.44,2.2229]
[1717509636744,0.17,166.52,166.44,2.2229]
[1717509637171,0.17,166.52,166.4,36.04]
[1717509637367,0.17,166.53,166.4,36.04]
[1717509637575,4.4439,166.52,166.39,2.2236]
[1717509637870,2.2223,166.49,166.39,2.2236]
[1717509638045,2.2223,166.49,166.4,2.2235]
[1717509638482,2.2225,166.48,166.39,2.2236]
[1717509638798,2.2226,166.47,166.38,2.2237]
[1717509638961,0.34,166.49,166.36,36.04]
[1717509639162,2.2228,166.46,166.37,2.2239]
[1717509639362,2.2227,166.46,166.37,2.2239]
[1717509639565,0.34,166.47,166.38,2.2237]
[1717509639867,2.5627,166.47,166.38,2.2237]
[1717509640055,2.2227,166.46,166.37,2.2239]
[1717509640255,0.17,166.45,166.38,2.2238]
[1717509640482,0.17,166.47,166.38,2.2238]
[1717509640483,2.3926,166.47,166.38,2.2238]
[1717509640671,2.2226,166.47,166.38,2.2238]
[1717509640859,2.2229,166.45,166.36,2.224]
[1717509641257,2.3927,166.46,166.37,2.2239]
[1717509641484,0.17,166.46,166.38,2.2238]
[1717509641695,2.5627,166.46,166.38,2.2238]
[1717509641981,2.5627,166.46,166.37,2.2239]
[1717509642367,2.5627,166.46,166.38,2.2238]
[1717509642685,2.2226,166.47,166.35,294.24]
[1717509642869,2.2226,166.47,166.35,36.04]
[1717509643071,0.17,166.48,166.4,2.2234]
[1717509643270,2.2226,166.47,166.39,2.2236]
[1717509643472,0.34,166.48,166.36,36.04]
[1717509643663,2.2227,166.46,166.37,2.2238]
[1717509643866,2.5626,166.47,166.38,2.2237]
[1717509644098,0.17,166.47,166.39,2.2236]
[1717509644408,2.2222,166.5,166.41,2.2233]
[1717509644776,2.2224,166.49,166.4,20.81]
[1717509644978,2.2225,166.48,166.4,20.81]
[1717509645363,4.4438,166.53,166.4,20.81]
[1717509645583,2.2222,166.5,166.41,2.2233]
[1717509645794,2.3923,166.49,166.4,23.0335]
[1717509646793,0.17,166.49,166.4,20.81]
[1717509647001,0.17,166.51,166.4,20.81]
[1717509647204,2.5621,166.51,166.42,2.2232]
[1717509647702,0.34,166.51,166.43,2.2231]
[1717509648026,0.34,166.51,166.4,20.81]
[1717509648177,0.34,166.51,166.38,2.2237]
[1717509648377,6.6667,166.5,166.36,23.034]
[1717509648601,2.2229,166.45,166.36,2.2239]
[1717509648816,0.34,166.46,166.34,36.04]
[1717509648977,2.2228,166.45,166.36,2.2239]
[1717509649378,2.5628,166.46,166.37,2.2239]
[1717509649596,0.34,166.46,166.35,20.81]
[1717509649794,2.2231,166.44,166.35,23.0341]
[1717509650194,2.2229,166.45,166.36,2.224]
[1717509650397,0.34,166.44,166.37,2.2238]
[1717509650612,2.223,166.44,166.35,23.0342]
[1717509650906,2.5628,166.46,166.37,2.2239]
[1717509651705,2.223,166.44,166.35,20.81]
[1717509651879,2.223,166.44,166.35,23.0341]
[1717509652078,2.223,166.44,166.35,20.81]
[1717509652319,2.223,166.44,166.36,2.224]
[1717509652509,2.223,166.44,166.35,23.0342]
[1717509652821,2.2229,166.45,166.36,2.224]
[1717509652988,2.2229,166.45,166.37,2.2239]
[1717509653489,2.2227,166.46,166.37,2.2239]
[1717509655015,2.5626,166.47,166.38,20.81]
[1717509655503,2.2227,166.46,166.38,20.81]
[1717509656084,2.2229,166.45,166.38,20.81]
[1717509657415,2.5626,166.47,166.39,2.2236]
[1717509657590,2.2228,166.45,166.38,20.81]
[1717509658008,0.34,166.47,166.38,20.81]
[1717509658009,2.2228,166.46,166.38,20.81]
[1717509658206,2.5626,166.47,166.38,20.81]
[1717509658407,2.5626,166.47,166.38,23.0337]
[1717509658605,2.5626,166.47,166.39,2.2236]
[1717509658788,0.17,166.47,166.39,2.2236]
[1717509659001,2.2225,166.48,166.4,2.2235]
[1717509659195,2.2225,166.48,166.38,20.81]
[1717509660016,0.34,166.49,166.41,23.0333]
[1717509660311,2.222,166.51,166.42,2.2232]
[1717509660894,2.2222,166.5,166.41,59.0734]
[1717509661213,2.2221,166.51,166.42,2.2232]
[1717509661421,2.2223,166.49,166.41,56.85]
[1717509661619,2.2222,166.5,166.41,59.0733]
[1717509661920,6.6657,166.52,166.41,56.85]
[1717509662099,0.17,166.51,166.41,20.81]
[1717509662296,2.2223,166.5,166.41,23.0334]
[1717509662524,2.2223,166.49,166.41,20.81]
[1717509662917,2.2222,166.5,166.41,23.0334]
[1717509663100,6.6657,166.52,166.41,56.85]
[1717509663297,8.8876,166.52,166.43,2.2231]
[1717509663497,6.6657,166.52,166.41,56.85]
[1717509663696,8.8877,166.52,166.43,2.223]
[1717509663923,8.8877,166.52,166.41,56.85]
[1717509664131,8.8877,166.52,166.43,2.2231]
[1717509664332,8.8877,166.52,166.44,2.2229]
[1717509664333,6.6657,166.52,166.44,2.2229]
[1717509664629,8.8877,166.52,166.41,56.85]
[1717509664854,8.8877,166.52,166.44,2.223]
[1717509664995,2.222,166.51,166.41,56.85]
[1717509665196,8.8876,166.52,166.43,2.2231]
[1717509665717,6.6657,166.52,166.45,2.2228]
[1717509665929,6.6657,166.52,166.47,2.2225]
[1717509666597,6.6657,166.52,166.38,36.05]
[1717509666800,11.1096,166.52,166.38,36.05]
[1717509667334,2.2226,166.47,166.38,38.2737]
[1717509667629,2.2226,166.47,166.39,23.0336]
[1717509667800,11.1096,166.52,166.39,59.0836]
[1717509668007,2.2226,166.47,166.39,56.86]
[1717509668399,2.2225,166.48,166.39,59.0836]
[1717509669010,0.34,166.51,166.39,56.86]
[1717509669218,0.34,166.51,166.39,59.0835]
[1717509669611,2.2223,166.49,166.39,66.96296335]
[1717509669809,2.2225,166.48,166.39,66.96296335]
[1717509671024,10.20690583,166.72,166.48,36.05]
[1717509671211,17.31746884,166.62,166.5,36.05]
[1717509671630,2.2209,166.6,166.5,38.2721]
[1717509671833,2.221,166.59,166.49,23.0323]
[1717509672135,2.221,166.59,166.5,2.2222]
[1717509672336,4.441,166.63,166.49,20.81]
[1717509672632,2.221,166.59,166.5,2.2221]
[1717509672808,2.221,166.59,166.49,20.81]
[1717509672809,2.2209,166.6,166.49,20.81]
[1717509673206,2.2209,166.6,166.5,2.2221]
[1717509673608,2.2209,166.6,166.51,2.222]
[1717509673825,2.2209,166.6,166.5,2.2222]
[1717509674206,4.441,166.63,166.48,2.2223]
[1717509674415,2.2211,166.58,166.49,2.2223]
[1717509674826,0.17,166.57,166.49,2.2223]
[1717509675034,0.34,166.58,166.49,2.2223]
[1717509675210,2.5611,166.58,166.46,36.05]
[1717509675421,2.2214,166.56,166.45,24.24]
[1717509675735,0.34,166.58,166.41,36.05]
[1717509675736,0.34,166.55,166.41,36.05]
[1717509675946,0.34,166.55,166.42,2.2231]
[1717509675947,2.222,166.52,166.42,2.2231]
[1717509676119,0.17,166.51,166.43,2.2231]
[1717509676322,0.17,166.51,166.42,2.2232]
[1717509676621,0.17,166.55,166.43,36.05]
[1717509676819,0.17,166.55,166.43,24.24]
[1717509677127,2.2218,166.53,166.44,2.2229]
[1717509677333,2.2217,166.54,166.44,2.2229]
[1717509677517,0.17,166.53,166.44,2.2229]
[1717509677715,0.17,166.53,166.46,2.2227]
[1717509678036,0.17,166.53,166.45,2.2228]
[1717509678213,0.34,166.53,166.46,2.2227]
[1717509678422,0.34,166.54,166.46,2.2227]
[1717509678618,0.34,166.54,166.45,2.2228]
[1717509679528,0.34,166.54,166.46,2.2227]
[1717509679728,0.34,166.54,166.47,2.2225]
[1717509679915,0.34,166.54,166.46,2.2227]
[1717509680229,0.17,166.53,166.45,2.2228]
[1717509680409,2.5615,166.55,166.45,2.2228]
[1717509680608,0.34,166.55,166.4,2.2234]
[1717509680833,2.2223,166.5,166.39,4.442]
[1717509681021,2.5623,166.49,166.39,4.442]
[1717509681223,0.34,166.49,166.41,2.2233]
[1717509682123,0.34,166.49,166.42,2.2232]
[1717509682439,0.34,166.5,166.42,2.2232]
[1717509682817,0.34,166.5,166.37,40.4978]
[1717509683222,2.2223,166.49,166.4,2.2234]
[1717509683426,0.34,166.48,166.4,2.2234]
[1717509683637,0.17,166.48,166.42,2.2232]
[1717509683853,2.2222,166.5,166.41,2.2234]
[1717509684128,0.34,166.49,166.42,2.2232]
[1717509684318,2.2223,166.49,166.41,2.2233]
[1717509684527,0.34,166.48,166.4,2.2235]
[1717509684750,0.34,166.48,166.41,2.2233]
[1717509685041,0.34,166.48,166.4,2.2235]
[1717509685248,0.34,166.48,166.41,2.2233]
[1717509685453,2.5623,166.49,166.4,2.2235]
[1717509685621,0.34,166.49,166.37,36.05]
[1717509685946,0.34,166.49,166.41,2.2233]
[1717509686134,0.34,166.49,166.42,2.2232]
[1717509686940,0.34,166.5,166.42,2.2232]
[1717509687321,0.34,166.5,166.43,2.2231]
[1717509687525,0.34,166.5,166.37,36.05]
[1717509687730,0.34,166.5,166.39,2.2235]
[1717509687947,2.2228,166.46,166.38,2.2237]
[1717509688153,0.17,166.45,166.38,2.2237]
[1717509688641,0.17,166.46,166.38,2.2237]
[1717509688828,2.3928,166.46,166.37,2.2239]
[1717509689022,2.2232,166.43,166.33,36.05]
[1717509689221,2.2232,166.43,166.32,24.24]
[1717509689222,0.17,166.42,166.34,2.2243]
[1717509689423,0.34,166.42,166.33,2.2243]
[1717509689650,0.34,166.42,166.31,40.4994]
[1717509689824,0.34,166.42,166.28,162.27]
[1717509689825,11.1109,166.51,166.33,24.24]
[1717509690028,0.34,166.5,166.35,4.4484]
[1717509690222,2.2227,166.46,166.37,2.2238]
[1717509690422,0.34,166.45,166.38,2.2238]
[1717509690623,0.34,166.45,166.34,36.05]
[1717509690624,0.34,166.45,166.37,2.2239]
[1717509690829,0.34,166.45,166.36,2.224]
[1717509691052,0.34,166.45,166.37,2.2239]
[1717509691256,2.5628,166.45,166.36,2.224]
[1717509691743,0.17,166.45,166.37,2.2239]
[1717509691942,0.34,166.46,166.38,2.2237]
[1717509692131,79.66349461,166.52,166.36,36.05]
[1717509692451,2.2222,166.5,166.41,2.2234]
[1717509692656,2.2223,166.49,166.4,2.2235]
[1717509692832,2.2225,166.48,166.39,2.2236]
[1717509693354,2.2226,166.47,166.38,2.2237]
[1717509693569,0.17,166.46,166.38,2.2237]
[1717509693858,0.17,166.46,166.39,20.81]
[1717509694341,0.17,166.46,166.39,23.0336]
[1717509694533,0.17,166.47,166.39,23.0336]
[1717509694854,0.17,166.47,166.4,2.2235]
[1717509695043,54.48124461,166.56,166.39,20.81]
[1717509695360,50.03824461,166.56,166.42,20.81]
[1717509695548,4.4436,166.53,166.42,20.81]
[1717509695752,2.2223,166.5,166.42,20.81]
[1717509696258,0.17,166.49,166.42,20.81]
[1717509696442,0.34,166.49,166.42,20.81]
[1717509696952,50.03824461,166.56,166.44,2.2228]
[1717509697145,50.03824461,166.56,166.45,20.81]
[1717509697146,2.2217,166.54,166.45,20.81]
[1717509697351,4.4425,166.58,166.45,20.81]
[1717509697533,2.2215,166.56,166.47,2.2225]
[1717509697740,4.4425,166.58,166.47,2.2225]
[1717509697940,2.2215,166.55,166.46,2.2227]
[1717509698351,4.4425,166.58,166.47,2.2225]
[1717509698541,4.4436,166.57,166.47,2.2225]
[1717509698861,2.2215,166.55,166.46,2.2227]
[1717509699036,2.2214,166.56,166.47,2.2225]
[1717509699240,2.2215,166.55,166.47,2.2225]
[1717509699658,2.2214,166.56,166.47,2.2225]
[1717509700143,4.4436,166.57,166.47,2.2225]
[1717509700343,2.2214,166.56,166.48,2.2224]
[1717509700740,4.4436,166.57,166.49,2.2223]
[1717509701073,6.6648,166.57,166.48,2.2224]
[1717509701655,2.3914,166.56,166.48,2.2224]
[1717509701984,0.17,166.56,166.48,2.2224]
[1717509702153,6.6649,166.57,166.49,2.2223]
[1717509703357,4.4436,166.57,166.49,2.2223]
[1717509703741,4.4436,166.57,166.48,2.2224]
[1717509704239,4.4436,166.57,166.5,2.2222]
[1717509704447,6.6649,166.57,166.49,2.2223]
[1717509705159,4.4436,166.57,166.47,36.05]
[1717509705363,6.6649,166.57,166.48,2.2224]
[1717509705871,6.6649,166.57,166.49,2.2223]
[1717509706248,2.2214,166.56,166.48,2.2224]
[1717509706451,6.6649,166.57,166.48,2.2224]
[1717509707477,6.6649,166.57,166.45,36.05]
[1717509707478,2.2214,166.56,166.45,36.05]
[1717509707848,2.2214,166.56,166.47,2.2225]
[1717509708082,2.2216,166.55,166.47,2.2225]
[1717509708270,0.17,166.54,166.46,2.2227]
[1717509708476,2.3917,166.54,166.46,2.2227]
[1717509709279,0.17,166.54,166.47,2.2226]
[1717509709658,2.3916,166.54,166.46,2.2227]
[1717509710071,2.2218,166.53,166.45,2.2228]
[1717509710481,2.392,166.52,166.43,2.223]
[1717509710654,0.17,166.51,166.44,2.2229]
[1717509711176,0.17,166.51,166.41,4.4468]
[1717509711385,2.2224,166.49,166.35,36.05]
[1717509711674,0.17,166.52,166.4,40.497]
[1717509711852,0.17,166.52,166.45,2.2228]
[1717509712053,0.17,166.52,166.46,2.2227]
[1717509712276,0.17,166.53,166.41,40.4966]
[1717509712485,0.34,166.53,166.41,36.05]
[1717509712657,2.222,166.52,166.41,36.05]
[1717509712864,2.5618,166.53,166.44,2.2229]
[1717509713057,0.34,166.53,166.39,4.4473]
[1717509713282,2.2221,166.51,166.42,2.2232]
[1717509713484,2.5622,166.5,166.41,2.2233]
[1717509713669,2.2221,166.51,166.39,4.4473]
[1717509713871,0.34,166.52,166.39,4.4473]
[1717509713872,0.17,166.5,166.42,2.2232]
[1717509714073,2.2221,166.51,166.42,2.2232]
[1717509714272,0.17,166.52,166.39,36.05]
[1717509714496,0.17,166.51,166.43,2.2231]
[1717509714691,0.17,166.51,166.44,2.223]
[1717509714893,0.17,166.51,166.39,36.05]
[1717509715098,2.3921,166.51,166.39,36.05]
[1717509715270,0.17,166.5,166.42,2.2232]
[1717509715475,2.3922,166.5,166.41,2.2233]
[1717509715672,0.17,166.49,166.42,2.2232]
[1717509715878,2.2219,166.52,166.43,2.2231]
[1717509716094,2.5621,166.51,166.42,2.2232]
[1717509717179,0.34,166.51,166.43,2.2231]
[1717509717499,2.5621,166.51,166.42,2.2232]
[1717509718374,2.5621,166.51,166.43,2.2231]
[1717509719604,2.5621,166.51,166.39,36.05]
[1717509719786,2.2222,166.5,166.42,2.2232]
[1717509720099,0.34,166.49,166.41,20.8]
[1717509720595,0.34,166.49,166.43,2.2231]
[1717509720897,0.17,166.48,166.41,20.8]
[1717509721094,0.34,166.5,166.41,20.8]
[1717509721397,0.17,166.5,166.41,20.8]
[1717509721574,0.17,166.51,166.43,2.2231]
[1717509721771,2.3921,166.51,166.43,2.2231]
[1717509721996,0.17,166.51,166.41,20.8]
[1717509722407,2.2223,166.49,166.42,2.2232]
[1717509722699,2.2223,166.49,166.39,4.4471]
[1717509722700,2.2226,166.47,166.39,2.2236]
[1717509722917,2.5627,166.46,166.38,20.8]
[1717509723076,2.2226,166.47,166.38,20.8]
[1717509723276,2.5627,166.46,166.38,23.0237]
[1717509723696,0.34,166.46,166.38,20.8]
[1717509724008,0.34,166.46,166.42,2.2232]
[1717509724302,0.17,166.46,166.42,2.2232]
[1717509724601,0.17,166.46,166.41,23.0233]
[1717509724800,2.2223,166.49,166.41,23.0233]
[1717509725000,2.2221,166.51,166.43,2.2231]
[1717509725202,2.2219,166.52,166.44,2.2229]
[1717509725584,2.2218,166.53,166.45,2.2228]
[1717509725780,2.2219,166.52,166.44,23.0229]
[1717509726300,2.2216,166.55,166.46,2.2226]
[1717509726500,4.4422,166.59,166.46,2.2226]
[1717509726798,2.2217,166.54,166.45,2.2228]
[1717509727179,2.2218,166.53,166.44,2.2229]
[1717509727377,4.4424,166.58,166.44,20.8]
[1717509727594,2.2215,166.55,166.44,20.8]
[1717509727776,2.2215,166.55,166.46,2.2227]
[1717509727985,2.2216,166.54,166.45,2.2228]
[1717509728216,2.2215,166.55,166.46,2.2227]
[1717509728710,2.3917,166.54,166.45,2.2228]
[1717509728895,2.5617,166.54,166.44,20.8]
[1717509729217,2.222,166.52,166.43,20.8]
[1717509729414,0.34,166.51,166.43,20.8]
[1717509729610,0.17,166.51,166.43,20.8]
[1717509729924,0.34,166.51,166.43,23.0231]
[1717509730226,0.34,166.51,166.44,2.2229]
[1717509730395,2.3919,166.52,166.43,23.0231]
[1717509730596,0.17,166.52,166.44,2.2229]
[1717509731015,0.17,166.52,166.43,20.8]
[1717509731197,2.2221,166.51,166.43,20.8]
[1717509731401,2.2221,166.51,166.43,23.023]
[1717509731606,2.2221,166.51,166.43,23.0231]
[1717509731997,2.3919,166.52,166.43,23.0231]
[1717509732196,2.3921,166.51,166.43,23.0231]
[1717509732917,0.17,166.51,166.43,23.0231]
[1717509733116,2.3921,166.51,166.43,23.0231]
[1717509733327,2.2222,166.5,166.43,20.8]
[1717509733615,0.17,166.49,166.43,23.0231]
[1717509733805,2.3922,166.5,166.43,20.8]
[1717509734004,2.2222,166.5,166.43,20.8]
[1717509734818,2.2222,166.5,166.42,2.2232]
[1717509735018,0.34,166.49,166.41,2.2234]
[1717509735319,2.3925,166.48,166.4,2.2235]
[1717509735621,0.17,166.47,166.41,2.2234]
[1717509735822,2.2225,166.48,166.4,2.2235]
[1717509736034,2.5626,166.47,166.4,2.2235]
[1717509736341,2.5625,166.48,166.4,2.2235]
[1717509736501,2.2225,166.48,166.41,2.2234]
[1717509736703,0.34,166.47,166.4,2.2235]
[1717509737109,2.5626,166.47,166.39,23.0236]
[1717509737316,0.17,166.47,166.39,20.8]
[1717509737534,15.5519,166.54,166.43,2.2231]
[1717509737535,11.1086,166.54,166.43,2.2231]
[1717509737702,4.4429,166.56,166.42,20.8]
[1717509737905,4.4431,166.55,166.42,20.8]
[1717509738104,2.222,166.51,166.43,2.2231]
[1717509738310,2.222,166.52,166.44,2.2229]
[1717509738534,2.2222,166.5,166.43,2.2231]
[1717509738730,2.2223,166.49,166.42,23.0232]
[1717509738907,2.2216,166.55,166.43,4.4462]
[1717509739243,2.2217,166.54,166.46,2.2227]
[1717509739405,2.2215,166.55,166.47,2.2226]
[1717509739910,2.2214,166.56,166.47,2.2226]
[1717509740118,2.2214,166.56,166.48,2.2224]
[1717509740742,2.2213,166.57,166.48,23.0224]